fUST/lending_fUST_20240930
["ID","MTS","AMOUNT","RATE_DAILY","PERIOD"]
[339569095,1727698247833,-1987.69,0.00013972,2]
[339569096,1727698247842,-917.33,0.00013972,2]
[339569097,1727698247851,-500.0,0.00013972,2]
[339569098,1727698247861,-500.0,0.00013972,2]
[339569099,1727698247872,-500.0,0.00013972,2]
[339569100,1727698247881,-500.0,0.00013972,2]
[339569101,1727698247891,-1719.57,0.00013972,2]
[339569102,1727698247900,-516.83,0.00013972,2]
[339569103,1727698247909,-500.0,0.00013972,2]
[339569104,1727698247919,-500.0,0.00013972,2]
[339569105,1727698247929,-500.0,0.00013972,2]
[339569106,1727698247939,-1168.96,0.00013972,2]
[339569107,1727698247948,-238.71456214,0.00013972,2]
[339569108,1727698247958,-788.43,0.00013972,2]
[339569109,1727698247967,-500.0,0.00013972,2]
[339569110,1727698247977,-500.0,0.00013972,2]
[339569111,1727698247987,-500.0,0.00013972,2]
[339569112,1727698247997,-500.0,0.00013972,2]
[339569113,1727698248007,-500.0,0.00013972,2]
[339569114,1727698248017,-500.0,0.00013972,2]
[339569115,1727698248027,-500.0,0.00013972,2]
[339569116,1727698248036,-500.0,0.00013972,2]
[339569117,1727698248045,-500.0,0.00013972,2]
[339569118,1727698248055,-996.98,0.00013972,2]
[339569119,1727698248065,-560.92,0.00013972,2]
[339569120,1727698248075,-500.0,0.00013972,2]
[339569121,1727698248085,-500.0,0.00013972,2]
[339569122,1727698248095,-605.96,0.00013972,2]
[339569123,1727698248107,-500.0,0.00013972,2]
[339569124,1727698248117,-500.0,0.00013972,2]
[339569125,1727698248126,-500.0,0.00013972,2]
[339569126,1727698248136,-500.0,0.00013972,2]
[339569127,1727698248145,-500.0,0.00013972,2]
[339569128,1727698248154,-500.0,0.00013972,2]
[339569129,1727698248164,-500.0,0.00013972,2]
[339569130,1727698248174,-500.0,0.00013972,2]
[339569131,1727698248186,-500.0,0.00013972,2]
[339569132,1727698248198,-500.0,0.00013972,2]
[339569133,1727698248208,-500.0,0.00013972,2]
[339569134,1727698248218,-288.99138709,0.00013972,2]
[339569135,1727698248228,-378.51484861,0.00013972,2]
[339569136,1727698248238,-500.0,0.00013972,2]
[339569137,1727698248248,-500.0,0.00013972,2]
[339569138,1727698248258,-500.0,0.00013972,2]
[339569139,1727698248269,-666.25,0.00013972,2]
[339569140,1727698248279,-189.07307288,0.00013972,2]
[339569141,1727698248289,-500.0,0.00013972,2]
[339569142,1727698248300,-500.0,0.00013972,2]
[339569143,1727698248311,-701.11,0.00013972,2]
[339569144,1727698248322,-518.31,0.00013972,2]
[339569145,1727698248331,-500.0,0.00013972,2]
[339569146,1727698248341,-500.0,0.00013972,2]
[339569147,1727698248351,-500.0,0.00013972,2]
[339569148,1727698248360,-820.52,0.00013972,2]
[339569149,1727698248370,-500.0,0.00013972,2]
[339569150,1727698248380,-500.0,0.00013972,2]
[339569151,1727698248390,-500.0,0.00013972,2]
[339569152,1727698248400,-500.0,0.00013972,2]
[339569153,1727698248410,-374.24569755,0.00013972,2]
[339569154,1727698248419,-500.0,0.00013972,2]
[339569155,1727698248429,-527.86,0.00013972,2]
[339569156,1727698248438,-500.0,0.00013972,2]
[339569157,1727698248451,-500.0,0.00013972,2]
[339569158,1727698248460,-500.0,0.00013972,2]
[339569159,1727698248470,-500.0,0.00013972,2]
[339569160,1727698248480,-500.0,0.00013972,2]
[339569161,1727698248490,-1837.0,0.00013972,2]
[339569162,1727698248500,-667.29,0.00013972,2]
[339569163,1727698248509,-500.0,0.00013972,2]
[339569164,1727698248519,-500.0,0.00013972,2]
[339569165,1727698248528,-628.03101304,0.00013972,2]
[339569166,1727698248538,-594.96,0.00013972,2]
[339569167,1727698248548,-239.3296795,0.00013972,2]
[339569168,1727698248557,-500.0,0.00013972,2]
[339569169,1727698248567,-500.0,0.00013972,2]
[339569170,1727698248576,-500.0,0.00013972,2]
[339569171,1727698248585,-500.0,0.00013972,2]
[339569172,1727698248595,-500.0,0.00013972,2]
[339569173,1727698248604,-500.0,0.00013972,2]
[339569174,1727698248614,-507.53169552,0.00013972,2]
[339569175,1727698248623,-500.0,0.00013972,2]
[339569176,1727698248633,-500.0,0.00013972,2]
[339569177,1727698248643,-500.0,0.00013972,2]
[339569178,1727698248652,-656.34,0.00013972,2]
[339569179,1727698248662,-739.64,0.00013972,2]
[339569180,1727698248671,-500.0,0.00013972,2]
[339569181,1727698248681,-500.0,0.00013972,2]
[339569182,1727698248691,-500.0,0.00013972,2]
[339569183,1727698248700,-779.94,0.00013972,2]
[339569184,1727698248710,-500.0,0.00013972,2]
[339569185,1727698248719,-500.0,0.00013972,2]
[339569186,1727698248728,-1648.37,0.00013972,2]
[339569187,1727698248908,-761.78,0.00013972,2]
[339569188,1727698248927,-500.0,0.00013972,2]
[339569189,1727698248936,-500.0,0.00013972,2]
[339569190,1727698248948,-500.0,0.00013972,2]
[339569191,1727698248958,-500.0,0.00013972,2]
[339569192,1727698248967,-500.0,0.00013972,2]
[339569193,1727698248977,-574.8785576,0.00013972,2]
[339569194,1727698248987,-500.0,0.00013972,2]
[339569195,1727698248996,-2001.87,0.00013972,2]
[339569196,1727698249006,-500.0,0.00013972,2]
[339569197,1727698249015,-500.0,0.00013972,2]
[339569198,1727698249025,-500.0,0.00013972,2]
[339569199,1727698249035,-526.12,0.00013972,2]
[339569200,1727698249044,-500.33,0.00013972,2]
[339569201,1727698249053,-500.0,0.00013972,2]
[339569202,1727698249064,-500.0,0.00013972,2]
[339569203,1727698249074,-500.0,0.00013972,2]
[339569204,1727698249084,-500.0,0.00013972,2]
[339569205,1727698249094,-500.23031292,0.00013972,2]
[339569206,1727698249103,-500.0,0.00013972,2]
[339569207,1727698249113,-500.0,0.00013972,2]
[339569208,1727698249122,-500.0,0.00013972,2]
[339569209,1727698249132,-500.0,0.00013972,2]
[339569210,1727698249142,-500.0,0.00013972,2]
[339569211,1727698249151,-500.0,0.00013972,2]
[339569212,1727698249162,-500.0,0.00013972,2]
[339569213,1727698249171,-500.0,0.00013972,2]
[339569214,1727698249182,-603.71,0.00013972,2]
[339569215,1727698249196,-500.0,0.00013972,2]
[339569216,1727698249205,-500.0,0.00013972,2]
[339569217,1727698249215,-500.0,0.00013972,2]
[339569218,1727698249224,-500.0,0.00013972,2]
[339569219,1727698249234,-535.63,0.00013972,2]
[339569220,1727698249243,-500.0,0.00013972,2]
[339569221,1727698249253,-500.0,0.00013972,2]
[339569222,1727698249263,-500.0,0.00013972,2]
[339569223,1727698249273,-500.0,0.00013972,2]
[339569224,1727698249282,-500.0,0.00013972,2]
[339569225,1727698249292,-500.0,0.00013972,2]
[339569226,1727698249302,-500.0,0.00013972,2]
[339569227,1727698249311,-1305.04,0.00013972,2]
[339569228,1727698249320,-500.0,0.00013972,2]
[339569229,1727698249330,-500.0,0.00013972,2]
[339569230,1727698249339,-500.0,0.00013972,2]
[339569231,1727698249349,-500.0,0.00013972,2]
[339569232,1727698249359,-500.0,0.00013972,2]
[339569233,1727698249368,-500.0,0.00013972,2]
[339569234,1727698249378,-500.0,0.00013972,2]
[339569235,1727698249387,-597.13,0.00013972,2]
[339569236,1727698249397,-500.0,0.00013972,2]
[339569237,1727698249406,-500.0,0.00013972,2]
[339569238,1727698249416,-899.86,0.00013972,2]
[339569239,1727698249426,-500.0,0.00013972,2]
[339569240,1727698249435,-500.0,0.00013972,2]
[339569241,1727698249446,-426.64,0.00013972,2]
[339569242,1727698249456,-500.0,0.00013972,2]
[339569243,1727698249466,-500.0,0.00013972,2]
[339569244,1727698249476,-500.0,0.00013972,2]
[339569245,1727698249485,-203.58518013,0.00013972,2]
[339569246,1727698249495,-500.0,0.00013972,2]
[339569247,1727698249507,-513.59620938,0.00013972,2]
[339569248,1727698249517,-500.0,0.00013972,2]
[339569249,1727698249526,-502.39,0.00013972,2]
[339569250,1727698249536,-500.0,0.00013972,2]
[339569251,1727698249546,-570.78,0.00013972,2]
[339569252,1727698249556,-500.0,0.00013972,2]
[339569253,1727698249566,-500.0,0.00013972,2]
[339569254,1727698249576,-500.0,0.00013972,2]
[339569255,1727698249587,-500.0,0.00013972,2]
[339569256,1727698249596,-500.0,0.00013972,2]
[339569257,1727698249606,-500.0,0.00013972,2]
[339569258,1727698249616,-961.09,0.00013972,2]
[339569259,1727698249626,-500.0,0.00013972,2]
[339569260,1727698249636,-500.0,0.00013972,2]
[339569261,1727698249646,-500.0,0.00013972,2]
[339569262,1727698249656,-1216.4,0.00013972,2]
[339569263,1727698249666,-500.0,0.00013972,2]
[339569264,1727698249676,-500.0,0.00013972,2]
[339569265,1727698249686,-500.0,0.00013972,2]
[339569266,1727698249701,-500.0,0.00013972,2]
[339569267,1727698249711,-500.0,0.00013972,2]
[339569268,1727698249722,-511.07,0.00013972,2]
[339569269,1727698249732,-500.0,0.00013972,2]
[339569270,1727698249742,-500.0,0.00013972,2]
[339569271,1727698249751,-971.71,0.00013972,2]
[339569272,1727698249761,-1000.0,0.00013972,2]
[339569273,1727698249771,-524.10048075,0.00013972,2]
[339569274,1727698249781,-517.29,0.00013972,2]
[339569275,1727698249791,-500.0,0.00013972,2]
[339569276,1727698249801,-500.0,0.00013972,2]
[339569277,1727698249811,-500.0,0.00013972,2]
[339569278,1727698249821,-500.0,0.00013972,2]
[339569279,1727698249831,-595.86764458,0.00013972,2]
[339569280,1727698249842,-1426.89,0.00013972,2]
[339569281,1727698249852,-500.0,0.00013972,2]
[339569282,1727698249862,-551.3,0.00013972,2]
[339569283,1727698249872,-500.0,0.00013972,2]
[339569284,1727698249882,-1592.94,0.00013972,2]
[339569285,1727698249892,-516.14,0.00013972,2]
[339569286,1727698249902,-500.0,0.00013972,2]
[339569287,1727698249912,-500.0,0.00013972,2]
[339569288,1727698249921,-500.0,0.00013972,2]
[339569289,1727698249931,-488.65015113,0.00013972,2]
[339569290,1727698249941,-500.0,0.00013972,2]
[339569291,1727698249951,-500.0,0.00013972,2]
[339569292,1727698249961,-500.0,0.00013972,2]
[339569293,1727698249971,-500.0,0.00013972,2]
[339569294,1727698249982,-500.0,0.00013972,2]
[339569295,1727698249992,-851.33,0.00013972,2]
[339569296,1727698250002,-500.0,0.00013972,2]
[339569297,1727698250011,-530.64572548,0.00013972,2]
[339569298,1727698250021,-500.0,0.00013972,2]
[339569299,1727698250031,-500.0,0.00013972,2]
[339569300,1727698250041,-500.0,0.00013972,2]
[339569301,1727698250051,-500.0,0.00013972,2]
[339569302,1727698250061,-487.5830356,0.00013972,2]
[339569303,1727698250071,-500.0,0.00013972,2]
[339569304,1727698250081,-500.0,0.00013972,2]
[339569305,1727698250091,-500.0,0.00013972,2]
[339569306,1727698250100,-500.0,0.00013972,2]
[339569307,1727698250110,-500.0,0.00013972,2]
[339569308,1727698250121,-1128.7,0.00013972,2]
[339569309,1727698250130,-1052.42,0.00013972,2]
[339569310,1727698250139,-500.0,0.00013972,2]
[339569311,1727698250149,-669.6,0.00013972,2]
[339569312,1727698250158,-500.0,0.00013972,2]
[339569313,1727698250167,-500.0,0.00013972,2]
[339569314,1727698250178,-1443.65,0.00013972,2]
[339569315,1727698250192,-500.0,0.00013972,2]
[339569316,1727698250202,-1096.24,0.00013972,2]
[339569317,1727698250212,-500.0,0.00013972,2]
[339569318,1727698250222,-500.0,0.00013972,2]
[339569319,1727698250233,-494.04970742,0.00013972,2]
[339569320,1727698250243,-500.0,0.00013972,2]
[339569321,1727698250253,-19021.45,0.00013972,2]
[339569322,1727698250264,-500.0,0.00013972,2]
[339569323,1727698250274,-500.0,0.00013972,2]
[339569324,1727698250284,-500.0,0.00013972,2]
[339569325,1727698250294,-724.35,0.00013972,2]
[339569326,1727698250304,-500.0,0.00013972,2]
[339569327,1727698250314,-500.0,0.00013972,2]
[339569328,1727698250324,-500.0,0.00013972,2]
[339569329,1727698250334,-587.7,0.00013972,2]
[339569330,1727698250344,-2773.7,0.00013972,2]
[339569331,1727698250355,-500.0,0.00013972,2]
[339569332,1727698250364,-500.0,0.00013972,2]
[339569333,1727698250374,-500.0,0.00013972,2]
[339569334,1727698250384,-151.0,0.00013972,2]
[339569335,1727698250394,-500.0,0.00013972,2]
[339569336,1727698250403,-617.0,0.00013972,2]
[339569337,1727698250413,-500.0,0.00013972,2]
[339569338,1727698250423,-151.0,0.00013972,2]
[339569339,1727698250433,-500.0,0.00013972,2]
[339569340,1727698250443,-500.0,0.00013972,2]
[339569341,1727698250452,-1354.9,0.00013972,2]
[339569342,1727698250463,-500.0,0.00013972,2]
[339569343,1727698250473,-500.0,0.00013972,2]
[339569344,1727698250482,-189.420715,0.00013972,2]
[339569345,1727698250492,-500.0,0.00013972,2]
[339569346,1727698250502,-189.420715,0.00013972,2]
[339569347,1727698250511,-500.0,0.00013972,2]
[339569348,1727698250521,-500.0,0.00013972,2]
[339569349,1727698250530,-500.0,0.00013972,2]
[339569350,1727698250540,-500.0,0.00013972,2]
[339569351,1727698250550,-500.0,0.00013972,2]
[339569352,1727698250560,-500.0,0.00013972,2]
[339569353,1727698250569,-399.055725,0.00013972,2]
[339569354,1727698250579,-500.0,0.00013972,2]
[339569355,1727698250588,-500.0,0.00013972,2]
[339569356,1727698250599,-151.0,0.00013972,2]
[339569357,1727698250609,-399.055725,0.00013972,2]
[339569358,1727698250618,-500.0,0.00013972,2]
[339569359,1727698250628,-500.0,0.00013972,2]
[339569360,1727698250638,-2194.36,0.00013972,2]
[339569361,1727698250647,-500.0,0.00013972,2]
[339569362,1727698250657,-646.87,0.00013972,2]
[339569363,1727698250667,-151.0,0.00013972,2]
[339569364,1727698250676,-500.0,0.00013972,2]
[339569365,1727698250688,-500.0,0.00013972,2]
[339569366,1727698250698,-151.0,0.00013972,2]
[339569367,1727698250707,-500.0,0.00013972,2]
[339569368,1727698250717,-500.0,0.00013972,2]
[339569369,1727698250726,-500.0,0.00013972,2]
[339569370,1727698250735,-500.0,0.00013972,2]
[339569371,1727698250745,-823.92,0.00013972,2]
[339569372,1727698250755,-500.0,0.00013972,2]
[339569373,1727698250764,-500.0,0.00013972,2]
[339569374,1727698250774,-500.0,0.00013972,2]
[339569375,1727698250784,-500.0,0.00013972,2]
[339569376,1727698250793,-500.0,0.00013972,2]
[339569377,1727698250803,-555.48,0.00013972,2]
[339569378,1727698250813,-500.0,0.00013972,2]
[339569379,1727698250822,-519.20847534,0.00013972,2]
[339569380,1727698250832,-2150.89,0.00013972,2]
[339569381,1727698250842,-500.0,0.00013972,2]
[339569382,1727698250852,-500.0,0.00013972,2]
[339569383,1727698250862,-2507.69,0.00013972,2]
[339569384,1727698250872,-500.0,0.00013972,2]
[339569385,1727698250882,-1059.29,0.00013972,2]
[339569386,1727698250892,-1282.436344,0.00013972,2]
[339569387,1727698250902,-500.0,0.00013972,2]
[339569388,1727698250911,-500.0,0.00013972,2]
[339569389,1727698250921,-1282.436344,0.00013972,2]
[339569390,1727698250930,-500.0,0.00013972,2]
[339569391,1727698250940,-500.0,0.00013972,2]
[339569392,1727698250950,-392.677128,0.00013972,2]
[339569393,1727698250960,-500.0,0.00013972,2]
[339569394,1727698250969,-500.0,0.00013972,2]
[339569395,1727698250978,-193.54888821,0.00013972,2]
[339569396,1727698250988,-392.677128,0.00013972,2]
[339569397,1727698250998,-500.0,0.00013972,2]
[339569398,1727698251008,-500.0,0.00013972,2]
[339569399,1727698251018,-500.0,0.00013972,2]
[339569400,1727698251027,-183.24347666,0.00013972,2]
[339569401,1727698251037,-509.61395947,0.00013972,2]
[339569402,1727698251048,-500.0,0.00013972,2]
[339569403,1727698251058,-500.0,0.00013972,2]
[339569404,1727698251068,-151.0,0.00013972,2]
[339569405,1727698251079,-500.0,0.00013972,2]
[339569406,1727698251089,-500.0,0.00013972,2]
[339569407,1727698251100,-151.0,0.00013972,2]
[339569408,1727698251109,-500.0,0.00013972,2]
[339569409,1727698251119,-660.17,0.00013972,2]
[339569410,1727698251128,-500.0,0.00013972,2]
[339569411,1727698251138,-1854.405955,0.00013972,2]
[339569412,1727698251148,-500.0,0.00013972,2]
[339569413,1727698251158,-500.0,0.00013972,2]
[339569414,1727698251168,-265.46489267,0.00013972,2]
[339569415,1727698251177,-500.0,0.00013972,2]
[339569416,1727698251189,-1854.405955,0.00013972,2]
[339569417,1727698251198,-162.31456302,0.00013972,2]
[339569418,1727698251208,-151.0,0.00013972,2]
[339569419,1727698251217,-500.0,0.00013972,2]
[339569420,1727698251227,-151.0,0.00013972,2]
[339569421,1727698251236,-500.0,0.00013972,2]
[339569422,1727698251246,-596.98,0.00013972,2]
[339569423,1727698251255,-500.0,0.00013972,2]
[339569424,1727698251265,-400.0,0.00013972,2]
[339569425,1727698251274,-500.0,0.00013972,2]
[339569426,1727698251284,-500.0,0.00013972,2]
[339569427,1727698251294,-2129.02,0.00013972,2]
[339569428,1727698251304,-512.97,0.00013972,2]
[339569429,1727698251314,-500.0,0.00013972,2]
[339569430,1727698251324,-175.368617,0.00013972,2]
[339569431,1727698251334,-1336.48,0.00013972,2]
[339569432,1727698251391,-500.0,0.00013972,2]
[339569433,1727698251401,-175.368617,0.00013972,2]
[339569434,1727698251411,-500.0,0.00013972,2]
[339569435,1727698251421,-1246.07,0.00013972,2]
[339569436,1727698251431,-500.0,0.00013972,2]
[339569437,1727698251442,-500.0,0.00013972,2]
[339569438,1727698251452,-529.40044147,0.00013972,2]
[339569439,1727698251464,-500.0,0.00013972,2]
[339569440,1727698251473,-151.0,0.00013972,2]
[339569441,1727698251481,-433.6526,0.00013972,2]
[339569442,1727698251491,-500.0,0.00013972,2]
[339569443,1727698251500,-945.7,0.00013972,2]
[339569444,1727698251510,-153.15165,0.00013972,2]
[339569445,1727698251519,-500.0,0.00013972,2]
[339569446,1727698251529,-500.0,0.00013972,2]
[339569447,1727698251538,-500.0,0.00013972,2]
[339569448,1727698251547,-433.6526,0.00013972,2]
[339569449,1727698251557,-153.15165,0.00013972,2]
[339569450,1727698251567,-500.0,0.00013972,2]
[339569451,1727698251576,-500.0,0.00013972,2]
[339569452,1727698251587,-500.0,0.00013972,2]
[339569453,1727698251597,-500.0,0.00013972,2]
[339569454,1727698251606,-1212.6,0.00013972,2]
[339569455,1727698251616,-500.0,0.00013972,2]
[339569456,1727698251625,-500.0,0.00013972,2]
[339569457,1727698251635,-500.0,0.00013972,2]
[339569458,1727698251645,-500.0,0.00013972,2]
[339569459,1727698251655,-2484.92,0.00013972,2]
[339569460,1727698251664,-500.0,0.00013972,2]
[339569461,1727698251673,-502.06,0.00013972,2]
[339569462,1727698251684,-500.0,0.00013972,2]
[339569463,1727698251694,-500.0,0.00013972,2]
[339569464,1727698251703,-500.0,0.00013972,2]
[339569465,1727698251713,-500.0,0.00013972,2]
[339569466,1727698251722,-500.0,0.00013972,2]
[339569467,1727698251731,-500.0,0.00013972,2]
[339569468,1727698251742,-309.114078,0.00013972,2]
[339569469,1727698251751,-1132.19,0.00013972,2]
[339569470,1727698251760,-665.25,0.00013972,2]
[339569471,1727698251769,-500.0,0.00013972,2]
[339569472,1727698251778,-309.114078,0.00013972,2]
[339569473,1727698251787,-500.0,0.00013972,2]
[339569474,1727698251796,-1407.52,0.00013972,2]
[339569475,1727698251806,-500.0,0.00013972,2]
[339569476,1727698251815,-500.0,0.00013972,2]
[339569477,1727698251825,-3603.435579,0.00013972,2]
[339569478,1727698251834,-500.0,0.00013972,2]
[339569479,1727698251843,-500.0,0.00013972,2]
[339569480,1727698251853,-876.431129,0.00013972,2]
[339569481,1727698251863,-500.0,0.00013972,2]
[339569482,1727698251872,-3603.435579,0.00013972,2]
[339569483,1727698251882,-500.0,0.00013972,2]
[339569484,1727698251891,-500.0,0.00013972,2]
[339569485,1727698251899,-876.431129,0.00013972,2]
[339569486,1727698251909,-500.0,0.00013972,2]
[339569487,1727698251919,-500.0,0.00013972,2]
[339569488,1727698251928,-500.0,0.00013972,2]
[339569489,1727698251937,-500.0,0.00013972,2]
[339569490,1727698251947,-500.0,0.00013972,2]
[339569491,1727698251957,-391.07820137,0.00013972,2]
[339569492,1727698251966,-746.39,0.00013972,2]
[339569493,1727698251975,-500.0,0.00013972,2]
[339569494,1727698251985,-500.0,0.00013972,2]
[339569495,1727698251994,-500.0,0.00013972,2]
[339569496,1727698252003,-567.81544519,0.00013972,2]
[339569497,1727698252013,-500.0,0.00013972,2]
[339569498,1727698252022,-500.0,0.00013973,2]
[339569499,1727698252032,-600.77844745,0.00013973,2]
[339569500,1727698252042,-500.0,0.00013973,2]
[339569501,1727698252051,-500.0,0.00013973,2]
[339569502,1727698252060,-500.0,0.00013973,2]
[339569503,1727698252070,-151.0,0.0001399,2]
[339569504,1727698252080,-151.0,0.0001399,2]
[339569505,1727698252089,-151.0,0.0001399,2]
[339569506,1727698252098,-151.043465,0.0001399,2]
[339569507,1727698252107,-151.0,0.0001399,2]
[339569508,1727698252116,-621.268638,0.0001399,2]
[339569509,1727698252126,-621.268638,0.0001399,2]
[339569510,1727698252135,-151.0,0.0001399,2]
[339569511,1727698252144,-1052.978274,0.0001399,2]
[339569512,1727698252154,-1052.978274,0.0001399,2]
[339569513,1727698252163,-293.839188,0.0001399,2]
[339569514,1727698252173,-293.839188,0.0001399,2]
[339569515,1727698252183,-5265.297618,0.0001399,2]
[339569516,1727698252195,-5265.297618,0.0001399,2]
[339569517,1727698252204,-500.0,0.00013999,2]
[339569518,1727698252213,-1000.0,0.00014,2]
[339569519,1727698252222,-1000.0,0.00014,2]
[339569520,1727698252232,-1000.0,0.00014,2]
[339569521,1727698252242,-166.666666,0.00014019,2]
[339569522,1727698252251,-500.0,0.00014027,2]
[339569523,1727698252263,-1500.0,0.00014027,2]
[339569524,1727698252273,-1500.0,0.00014027,2]
[339569525,1727698252283,-1500.0,0.00014027,2]
[339569526,1727698252293,-500.0,0.00014054,2]
[339569527,1727698252302,-340.10878567,0.00014055,2]
[339569528,1727698252311,-2000.0,0.00014055,2]
[339569529,1727698252321,-2000.0,0.00014055,2]
[339569530,1727698252330,-572.0,0.00014082,2]
[339569531,1727698252339,-2500.0,0.00014082,2]
[339569532,1727698252349,-2500.0,0.00014082,2]
[339569533,1727698252358,-150.112234,0.000141,2]
[339569534,1727698252367,-412.5224329,0.000141,2]
[339569535,1727698252377,-153.0,0.000141,2]
[339569536,1727698252386,-1800.78011353,0.0001411,2]
[339569537,1727698252395,-3000.0,0.0001411,2]
[339569538,1727698252404,-3500.0,0.00014137,2]
[339569539,1727698252414,-4000.0,0.00014164,2]
[339569540,1727698252423,-890.93791744,0.00014192,2]
[339569541,1727698252432,-1060.4162605,0.000142,2]
[339569542,1727698252442,-150.112233,0.000142,2]
[339569543,1727698252451,-177.647,0.00014235,2]
[339569544,1727698252460,-500.0,0.00014246,2]
[339569545,1727698252469,-500.0,0.00014246,2]
[339569546,1727698252479,-500.83519441,0.00014246,2]
[339569547,1727698252488,-500.0,0.00014246,2]
[339569548,1727698252498,-500.0,0.00014246,2]
[339569549,1727698252507,-500.0,0.00014246,2]
[339569550,1727698252517,-500.0,0.00014246,2]
[339569551,1727698252526,-500.0,0.00014246,2]
[339569552,1727698252536,-518.02,0.00014246,2]
[339569553,1727698252545,-500.0,0.00014246,2]
[339569554,1727698252554,-500.0,0.00014246,2]
[339569555,1727698252564,-500.0,0.00014246,2]
[339569556,1727698252573,-500.0,0.00014246,2]
[339569557,1727698252583,-500.0,0.00014246,2]
[339569558,1727698252593,-514.46,0.00014246,2]
[339569559,1727698252603,-500.0,0.00014246,2]
[339569560,1727698252612,-500.0,0.00014246,2]
[339569561,1727698252622,-500.0,0.00014246,2]
[339569562,1727698252631,-500.0,0.00014246,2]
[339569563,1727698252641,-500.0,0.00014246,2]
[339569564,1727698252651,-517.11388092,0.00014246,2]
[339569565,1727698252660,-535.93486993,0.00014246,2]
[339569566,1727698252669,-500.0,0.00014246,2]
[339569567,1727698252678,-500.0,0.00014246,2]
[339569568,1727698252687,-168.15030734,0.00014246,2]
[339569569,1727698252700,-500.0,0.00014246,2]
[339569570,1727698252709,-500.0,0.00014246,2]
[339569571,1727698252718,-500.0,0.00014246,2]
[339569572,1727698252728,-500.0,0.00014246,2]
[339569573,1727698252737,-500.0,0.00014246,2]
[339569574,1727698252746,-500.0,0.00014246,2]
[339569575,1727698252755,-500.0,0.00014246,2]
[339569576,1727698252765,-556.85587607,0.00014246,2]
[339569577,1727698252774,-500.0,0.00014246,2]
[339569578,1727698252784,-500.0,0.00014246,2]
[339569579,1727698252794,-1698.6,0.00014246,2]
[339569580,1727698252803,-500.0,0.00014246,2]
[339569581,1727698252812,-1036.0,0.00014246,2]
[339569582,1727698252822,-500.0,0.00014246,2]
[339569583,1727698252831,-500.0,0.00014246,2]
[339569584,1727698252840,-592.32311398,0.00014246,2]
[339569585,1727698252850,-500.0,0.00014246,2]
[339569586,1727698252859,-500.0,0.00014246,2]
[339569587,1727698252869,-500.0,0.00014246,2]
[339569588,1727698252878,-500.0,0.00014246,2]
[339569589,1727698252887,-520.74,0.00014246,2]
[339569590,1727698252896,-401.37044076,0.00014246,2]
[339569591,1727698252905,-624.8,0.00014246,2]
[339569592,1727698252914,-500.0,0.00014246,2]
[339569593,1727698252925,-500.0,0.00014246,2]
[339569594,1727698252934,-500.0,0.00014246,2]